Cogmind - Beta 13 @@@ ROGUE MODE // 2024.04.04 @ 09:21:20 Player: writers.room Result: Destroyed by G-47 Trooper with Particle Gun Performance ------------- Evolutions (3) 1500 Regions Visited (6) 1200 Robots Destroyed (10) 50 Value Destroyed (384) 384 Prototype IDs (5) 100 Alien Tech Used (0) 0 Bonus (213) 213 TOTAL SCORE: 3447 Bonus ------- Pacifist 200 High Alert Combat Kills 13 Cogmind --------- Core Integrity 0/700 Matter 105/300 Energy 98/100 System Corruption 2% Temperature Cool (9) Movement Core (50) Location -7/Factory Parts ------- > --- POWER (2) -------- (None) > --- PROPULSION (3) --- (None) > --- UTILITY (6) ------ (None) > --- WEAPON (2) ------- (None) > --- INVENTORY (5) ---- Cooled Ion Engine Cooled Ion Engine Light Nuclear Core Shield Generator System Restoration Module Peak State ------------ > --- POWER ------------ Micro Nuclear Core > --- PROPULSION ------- Cesium-ion Thruster Cesium-ion Thruster > --- UTILITY ---------- Coolant Injector Advanced Visual Processing Unit Transmission Jammer Shield Generator System Restoration Module > --- WEAPON ----------- (None) > --- INVENTORY -------- Cooled Ion Engine Cooled Ion Engine [Rating: 27] Favorites ----------- Power Cooled Ion Engine Engine Cooled Ion Engine Power Core Micro Nuclear Core Reactor Cold Fusion Reactor Propulsion Aluminum Leg Treads Armored Treads Leg Aluminum Leg Hover Unit Backup Propulsion I Flight Unit Cesium-ion Thruster Utility Advanced Visual Processing Unit Device Coolant Injector Processor Advanced Visual Processing Unit Protection Backup Plating I Weapon Heavy Particle Cannon Energy Gun Backup Laser I Energy Cannon Heavy Particle Cannon Ballistic Cannon Assault Cannon Launcher Heavy Rocket Launcher Build | -11 -10 -10 -9 -8 -8 -7 ------- Run | Yrd Mat Min Mat Mat Sto Fac Slots Evolved 6 | . . . 2 2 . 2 Power 1 | . . . . . . 1 Propulsion 1 | . . . . . . 1 Utility 4 | . . . 2 2 . . Weapon . | . . . . . . . Parts Attached 31 | . . . 11 2 1 17 Power 6 | . . . 3 . 1 2 Engine 4 | . . . 3 . . 1 Core 1 | . . . . . . 1 Reactor 1 | . . . . . 1 . Propulsion 7 | . . . 3 1 . 3 Treads 1 | . . . . 1 . . Leg 4 | . . . 3 . . 1 Wheel . | . . . . . . . Hover . | . . . . . . . Flight 2 | . . . . . . 2 Utility 10 | . . . 1 1 . 8 Device 7 | . . . 1 1 . 5 Storage . | . . . . . . . Processor 1 | . . . . . . 1 Hackware . | . . . . . . . Protection 2 | . . . . . . 2 Artifact . | . . . . . . . Weapon 8 | . . . 4 . . 4 Energy Gun . | . . . . . . . Energy Cannon 4 | . . . 4 . . . Ballistic Gun . | . . . . . . . Ballistic Cannon 2 | . . . . . . 2 Launcher 2 | . . . . . . 2 Special Weapon . | . . . . . . . Impact Weapon . | . . . . . . . Slashing Weapon . | . . . . . . . Piercing Weapon . | . . . . . . . Special Melee Weapon . | . . . . . . . Unidentified Prototypes 2 | . . . 1 . 1 . Parts Lost 5 | . . . 1 . 1 3 Power 1 | . . . . . . 1 Propulsion 2 | . . . . . . 2 Utility 2 | . . . 1 . 1 . Weapon . | . . . . . . . Highest Loss Streak 2 | . . . 1 . 1 2 To Critical Strikes . | . . . . . . . Average Slot Usage (%) 37 | . . . 40 43 31 37 Engine 6 | . . . 10 9 2 4 Treads 1 | . . . . 4 6 . Leg 5 | . . . 12 6 . . Hover 1 | . . . . . . 3 Flight 2 | . . . . . . 7 Device 4 | . . . 2 4 5 7 Processor 1 | . . . . . . 3 Protection 1 | . . . . . . 4 Energy Gun 1 | . . . . . . 3 Energy Cannon 8 | . . . 15 18 13 . Naked Turns 200 | . 25 9 21 . 45 100 Heaviest Build 27 | . . . 25 23 27 19 Greatest Support 20 | 3 3 3 20 20 20 18 Greatest Overweight (x) 8 | . . . 8 1 1 6 Average Overweight (x) . | . . . . . . . Largest Inventory Capacity 5 | 5 5 5 5 5 5 5 Average Capacity 5 | 5 5 5 5 5 5 5 Most Carried 5 | . . . 4 4 4 5 Average Carried 2 | . . . 2 1 2 3 Final Capacity 5 | 5 5 5 5 5 5 5 Final Carried 5 | . . . 2 2 2 5 Class Distribution -------------------- 81% | Mutant 18% | Sprinter Dominant Class ---------------- Mutant | -10/Materials Mutant | -10/Mines Mutant | -9/Materials Mutant | -8/Materials Mutant | -8/Storage Mutant | -7/Factory Resources | -11 -10 -10 -9 -8 -8 -7 ----------- Run | Yrd Mat Min Mat Mat Sto Fac Matter Collected 378 | 74 . . 244 . . 60 Remotely . | . . . . . . . Salvage Created 425 | . . . 343 . 42 40 Parts 22 | . . . 15 . 2 5 Haulers Intercepted . | . . . . . . . Recyclers Shooed . | . . . . . . . Parts Field Recycled . | . . . . . . . Retrieved Matter . | . . . . . . . Parts Self-Destructed . | . . . . . . . Prevented . | . . . . . . . Kills | -11 -10 -10 -9 -8 -8 -7 ------- Run | Yrd Mat Min Mat Mat Sto Fac Combat Hostiles Destroyed 7 | . . . 5 . 1 1 Cannons 6 | . . . 5 . 1 . AOE 1 | . . . . . . 1 Classes Destroyed 5 | . . . 3 . 1 1 Worker 1 | . . . 1 . . . Recycler 1 | . . . 1 . . . Operator 1 | . . . . . . 1 Grunt 5 | . . . 5 . . . Hunter 2 | . . . . . 1 1 Best Kill Streak 4 | . . . 4 . 1 1 Combat Bots Only 4 | . . . 4 . 1 1 Max Kills in Single Turn 1 | . . . 1 . 1 1 Gunslinging . | . . . . . . . Exploded 1 | . . . . . . 1 Melee . | . . . . . . . Uniques/NPCs Destroyed . | . . . . . . . Combat | -11 -10 -10 -9 -8 -8 -7 -------- Run | Yrd Mat Min Mat Mat Sto Fac Hostile Shots Fired 360 | . 12 . 55 . 102 191 Missed 156 | . 5 . 8 . 44 99 Damage Taken 2605 | . 62 6 446 . 917 1174 Core 1335 | . 62 6 114 . 446 707 Absorbed by Shields 186 | . . . 140 . . 46 Core Remaining (%) 65 | 100 . 72 71 . 18 . Volleys Fired 30 | . . . 20 . 4 6 Largest 2 | . . . 2 . 2 2 Hottest 150 | . . . 150 . 150 88 Shots Fired 49 | . . . 34 . 8 7 Gun . | . . . . . . . Cannon 44 | . . . 34 . 8 2 Launcher 5 | . . . . . . 5 Special . | . . . . . . . Kinetic 2 | . . . . . . 2 Thermal 42 | . . . 34 . 8 . Explosive 5 | . . . . . . 5 Electromagnetic . | . . . . . . . Robot Hit Streak 9 | . . . 9 . 2 1 Robot Miss Streak 3 | . . . 3 . 2 1 Penetration Max . | . . . . . . . Secondary Targets . | . . . . . . . Shots Hit Robots 23 | . . . 16 . 4 3 Core Hits 16 | . . 1 8 . 3 4 Critical Kills . | . . . . . . . Critical Parts Destroyed . | . . . . . . . Critical Strikes . | . . . . . . . Melee Attacks . | . . . . . . . Impact . | . . . . . . . Slashing . | . . . . . . . Piercing . | . . . . . . . Sneak Attacks . | . . . . . . . Combat Hostiles . | . . . . . . . Follow-up Attacks . | . . . . . . . Damage Inflicted 960 | . . 7 450 . 112 391 Guns . | . . . . . . . Cannons 562 | . . . 450 . 112 . Explosions 349 | . . . . . . 349 Melee . | . . . . . . . Ramming 49 | . . 7 . . . 42 Kinetic . | . . . . . . . Thermal 719 | . . . 450 . 112 157 Explosive 192 | . . . . . . 192 Electromagnetic . | . . . . . . . Impact . | . . . . . . . Slashing . | . . . . . . . Piercing . | . . . . . . . Highest Corruption 2 | . . . . . . 2 Average Corruption 2 | . . . . . . 2 Corruption Purged . | . . . . . . . Corruption Blocked . | . . . . . . . Effects 3 | . . . . . . 3 Matter Fused 1 | . . . . . . 1 Energy Discharges 1 | . . . . . . 1 Parts Rejected 1 | . . . . . . 1 Overload Shots . | . . . . . . . Overflow Damage 86 | . . . . . . 86 Projectiles . | . . . . . . . Explosions 86 | . . . . . . 86 Melee . | . . . . . . . Knockbacks . | . . . . . . . Impact . | . . . . . . . Kinetic . | . . . . . . . Secondary . | . . . . . . . Self-Inflicted Damage 145 | . . 3 . . . 142 Shots 3 | . . . . . . 3 Rammed 16 | . . 1 . . . 15 Targets Rammed 16 | . . 1 . . . 15 Kicked . | . . . . . . . Crushed . | . . . . . . . Highest Temperature 717 | . . . 717 . 153 5 Average Temperature 220 | . . . 263 . 63 4 Received Heat Transfer 1000 | . 6 . 236 . 513 245 Effects 17 | . . . 17 . . . Shutdowns 2 | . . . 2 . . . Energy Bleed 5 | . . . 5 . . . Interference 2 | . . . 2 . . . Matter Decay 3 | . . . 3 . . . Damage (minor) 1 | . . . 1 . . . Damage (major) 4 | . . . 4 . . . Siege Activations . | . . . . . . . Robots Corrupted . | . . . . . . . Combat Hostiles . | . . . . . . . Parts Fried . | . . . . . . . Impact Corruptions 1 | . . . . . . 1 Robots Melted . | . . . . . . . Combat Hostiles . | . . . . . . . Parts Melted . | . . . . . . . Heat Transferred 914 | . . . 666 . 148 100 Parts Sabotaged . | . . . . . . . Parts Stolen . | . . . . . . . Parts Stripped . | . . . . . . . Power Chain Reactions . | . . . . . . . Alert | -11 -10 -10 -9 -8 -8 -7 ------- Run | Yrd Mat Min Mat Mat Sto Fac Peak Influence 547 | . . 15 182 81 243 547 Initial 109 | . . . 5 76 33 109 Average 168 | . . 6 89 80 84 301 Maximum Alert Level 2 | . . . . . 1 2 Low Security (%) 68 | 100 100 100 100 100 95 21 Level 1 21 | . . . . . 4 52 Level 2 10 | . . . . . . 26 Level 3 . | . . . . . . . Level 4 . | . . . . . . . Level 5 . | . . . . . . . High Security . | . . . . . . . Max Security . | . . . . . . . Squads Dispatched 10 | . . . 1 . 3 6 Investigation 6 | . . . 1 . 1 4 Extermination . | . . . . . . . Reinforcement 4 | . . . . . 2 2 Assault . | . . . . . . . Garrison . | . . . . . . . Intercept . | . . . . . . . Searches Triggered . | . . . . . . . Construction Impeded . | . . . . . . . Haulers Reinforced . | . . . . . . . Active Scanning Responses . | . . . . . . . Cargo Convoy Interrupts . | . . . . . . . Stealth | -11 -10 -10 -9 -8 -8 -7 --------- Run | Yrd Mat Min Mat Mat Sto Fac Distress Signals 1 | . . . 1 . . . Communications Jammed 8 | . . . . . . 8 Distress Signals 8 | . . . . . . 8 Times Spotted 84 | . 5 9 15 . 24 31 Peak Tracking Total 22 | . 6 14 7 . 22 11 Tactical Retreats 8 | . . . . . 1 7 Traps | -11 -10 -10 -9 -8 -8 -7 ------- Run | Yrd Mat Min Mat Mat Sto Fac Traps Triggered 3 | . . . . . 1 2 Indirectly . | . . . . . . . Trap Hack Attempts . | . . . . . . . Triggered . | . . . . . . . Disarmed . | . . . . . . . Reprogrammed . | . . . . . . . Reused . | . . . . . . . Traps Extracted . | . . . . . . . Installed . | . . . . . . . Triggered . | . . . . . . . Objects Rigged 9 | . . . . . . 9 Exploded 1 | . . . . . . 1 Machines | -11 -10 -10 -9 -8 -8 -7 ---------- Run | Yrd Mat Min Mat Mat Sto Fac Machines Disabled 6 | . . . . . . 6 Max in Single Turn 3 | . . . . . . 3 Machines Repaired . | . . . . . . . Machines Dismantled . | . . . . . . . Machines Sabotaged . | . . . . . . . Overloaded Fab Kills . | . . . . . . . Hacking | -11 -10 -10 -9 -8 -8 -7 --------- Run | Yrd Mat Min Mat Mat Sto Fac Machines Accessed 13 | . . . 4 1 2 6 Terminals 10 | . . . 4 1 2 3 Fabricators 1 | . . . . . . 1 Repair Stations 1 | . . . . . . 1 Recycling Units 1 | . . . . . . 1 Scanalyzers . | . . . . . . . Garrison Access . | . . . . . . . Total Hacks 34 | . . . 10 2 6 16 Successful 16 | . . . 6 2 3 5 Failed 18 | . . . 4 . 3 11 Catastrophic 6 | . . . 2 . . 4 Database Lockouts . | . . . . . . . Manual 7 | . . . . . 1 6 Terminals 26 | . . . 10 2 6 8 Fabricators 2 | . . . . . . 2 Repair Stations 2 | . . . . . . 2 Recycling Units 4 | . . . . . . 4 Scanalyzers . | . . . . . . . Garrison Access . | . . . . . . . Terminal Hacks 12 | . . . 6 2 3 1 Record 1 | . . . . . 1 . Prototype ID Bank 2 | . . . 2 . . . Open Door 1 | . . . . . 1 . Emergency Access Points 1 | . . . 1 . . . Terminal Index 2 | . . . 1 . . 1 Dispatch Records 1 | . . . 1 . . . Transport Status 1 | . . . . 1 . . Investigation Status 1 | . . . . 1 . . Recall Reinforcements 1 | . . . 1 . . . Zone Layout 1 | . . . . . 1 . Fabricator Hacks . | . . . . . . . Repair Station Hacks 1 | . . . . . . 1 Refit 1 | . . . . . . 1 Recycling Unit Hacks 2 | . . . . . . 2 Retrieve Matter 2 | . . . . . . 2 Scanalyzer . | . . . . . . . Garrison Access Hacks . | . . . . . . . Unauthorized Hacks 1 | . . . . . . 1 Terminals 1 | . . . . . . 1 Detonate 1 | . . . . . . 1 Fabricators . | . . . . . . . Repair Stations . | . . . . . . . Recycling Units . | . . . . . . . Scanalyzers . | . . . . . . . Garrison Access . | . . . . . . . Data Cores Recovered . | . . . . . . . Used . | . . . . . . . Hacking Detections 11 | . . . 2 1 2 6 Full Trace Events 6 | . . . 1 . 1 4 Feedback Events . | . . . . . . . Feedback Blocked . | . . . . . . . Robot Schematics Acquired . | . . . . . . . Robots Built . | . . . . . . . Authchips . | . . . . . . . Time . | . . . . . . . Total Robot Build Rating . | . . . . . . . Part Schematics Acquired . | . . . . . . . Parts Built . | . . . . . . . Authchips . | . . . . . . . Time . | . . . . . . . Total Part Build Rating . | . . . . . . . Parts Repaired . | . . . . . . . Time . | . . . . . . . Parts Recycled . | . . . . . . . Recycled Matter . | . . . . . . . Retrieved Matter . | . . . . . . . Retrieved Components . | . . . . . . . Parts Scanalyzed . | . . . . . . . Part Schematics Acquired . | . . . . . . . Parts Damaged . | . . . . . . . Bothacking | -11 -10 -10 -9 -8 -8 -7 ------------ Run | Yrd Mat Min Mat Mat Sto Fac Used RIF Installer . | . . . . . . . Robots Hacked . | . . . . . . . Non-combat . | . . . . . . . Combat . | . . . . . . . Robot Hacks Applied . | . . . . . . . Relay Couplers Released . | . . . . . . . Fabnet Peak Effective % . | . . . . . . . Robots Rewired . | . . . . . . . Allies Hacked . | . . . . . . . Hacks Repelled . | . . . . . . . Allies | -11 -10 -10 -9 -8 -8 -7 -------- Run | Yrd Mat Min Mat Mat Sto Fac Total Allies 1 | . . 1 . . . . Largest Group 1 | . . 1 . . . . Highest-Rated Group 31 | . . 31 . . . . Highest-Rated Ally 31 | . . 31 . . . . Total Orders . | . . . . . . . Ally Attacks 1 | . . 1 . . . . Total Damage 21 | . . 21 . . . . Kills . | . . . . . . . Allies Corrupted . | . . . . . . . Allies Melted . | . . . . . . . Intel | -11 -10 -10 -9 -8 -8 -7 ------- Run | Yrd Mat Min Mat Mat Sto Fac Robot Analysis Total . | . . . . . . . Derelict Logs Recovered . | . . . . . . . Drone Launches . | . . . . . . . Drone Recoveries . | . . . . . . . Exploration | -11 -10 -10 -9 -8 -8 -7 ------------- Run | Yrd Mat Min Mat Mat Sto Fac Turns Passed 1174 | 11 25 9 381 126 155 467 Spaces Moved 1388 | 22 50 15 243 71 128 859 Core 457 | 22 50 15 83 . 90 197 Treads 67 | . . . . 29 38 . Legs 210 | . . . 160 42 . 8 Wheels . | . . . . . . . Hover 125 | . . . . . . 125 Flight 529 | . . . . . . 529 Fastest Speed 32 | 50 50 50 50 120 50 32 Average Speed 71 | 50 50 50 125 170 109 44 Slowest Speed 450 | 50 50 50 450 250 250 350 Overloaded Moves . | . . . . . . . Propulsion Burnouts . | . . . . . . . Robots Hopped 5 | . . . . . . 5 Cave-ins Triggered . | . . . . . . . Exploration Rate (%) 18 | 3 18 9 29 6 40 21 Regions Visited 6 Branch Regions 2 Pre-discovered Areas . | . . . . . . . Known Exits Taken . | . . . . . . . Unknown Exits Taken 6 | 1 1 1 1 1 1 . Scrap Searched . | . . . . . . . Spaces Dug 4 | . . . 4 . . . Terrain Destroyed 86 | . . . 15 . 4 67 Melee . | . . . . . . . Projectile 19 | . . . 15 . 4 . AOE 67 | . . . . . . 67 Terrain Rammed . | . . . . . . . Walls Destroyed . | . . . . . . . Machines Disabled . | . . . . . . . Actions | -11 -10 -10 -9 -8 -8 -7 --------- Run | Yrd Mat Min Mat Mat Sto Fac Total 1515 | 21 49 15 285 78 135 932 Wait 29 | . . . 1 . . 28 Move 1374 | 21 49 14 242 70 127 851 Hop 3 | . . . . . . 3 Pick Up 6 | . . . 3 1 1 1 Fast Attach 25 | . . . 8 2 . 15 Attach 5 | . . . 2 . 1 2 Detach 14 | . . . 4 2 1 7 Swap 1 | . . . 1 . . . Drop 12 | . . . 4 3 1 4 Fire 30 | . . . 20 . 4 6 Melee . | . . . . . . . Ram 16 | . . 1 . . . 15 Kick . | . . . . . . . Crush . | . . . . . . . Escape Stasis . | . . . . . . . Rewire . | . . . . . . . Trap . | . . . . . . . Miscellaneous . | . . . . . . . Route ------- -11/Scrapyard -10/Materials -10/Mines -9/Materials -8/Materials -8/Storage -7/Factory History --------- Turn | Location | Event 5 | -11/Scrapyard | Discovered new exit (range 12) 12 | -11/Scrapyard | Entered Materials 33 | -10/Materials | Discovered new exit (range 9) 37 | -10/Materials | Entered Mines 38 | -10/Mines | Assembled infested the area 40 | -10/Mines | Received a Mining Laser from a helpful Derelict 42 | -10/Mines | Discovered new exit (range 7) 43 | -10/Mines | Assisted by a Guerilla fighting off Assembled 46 | -10/Mines | Entered Materials 46 | -9/Materials | Evolved 2 slots: Utility x2 309 | -9/Materials | Build established: Mutant 405 | -9/Materials | Discovered new exit (range 16) 427 | -9/Materials | Entered another Materials area 427 | -8/Materials | Evolved 2 slots: Utility x2 530 | -8/Materials | Discovered new exit (range 9) 553 | -8/Materials | Entered Storage 663 | -8/Storage | Released all parts (4) 680 | -8/Storage | Core integrity fell below 50% 701 | -8/Storage | Discovered new exit (range 15) 707 | -8/Storage | Core integrity fell below 20% 708 | -8/Storage | Entered Factory 708 | -7/Factory | Evolved 2 slots: Power x1, Propulsion x1 963 | -7/Factory | Released all parts (2) 1009 | -7/Factory | Core integrity fell below 50% 1022 | -7/Factory | Released all parts (4) 1156 | -7/Factory | Core integrity fell below 20% 1166 | -7/Factory | Released all parts (7) 1175 | -7/Factory | Destroyed by G-47 Trooper with Particle Gun Last Messages --------------- O19K173K80: Fusion Modulator 044V5GO3ZY: Neutrino Reactor EY8DKUQO3Q: Neutrino Reactor Q4ZBLG8RKV: Neutrino Reactor GGEOZ0AE8I: Neutrino Reactor A36R33IRR9: Neutrino Reactor 26YO6EHFDZ: Neutrino Reactor Infected machine control systems. 01166_ Released Coolant Injector. 01166_ Released Backup Propulsion I. 01166_ Released Backup Plating I. 01166_ Released Backup Laser I. 01167_ O-16 Technician uses terminal to summon reinforcements. 01167_ ALERT: Hostiles spotted, dispatching reinforcements to Terminal F009. 01167_ O-16 Technician locks terminal. 01167_ O-16 Technician cleans trojans from system. 01168_ Terminal disabled. 01168_ Fusion Modulator explodes. 01169_ T-07 Excavator is excavating. Map ----- +----------------------------------------------------+ | ?????????????????????????????????????? | | ?????????????????????????????????????? | | ?????????????????????????????????????? | | ?????????????????????????????????????? | | ?????????????????????????????????????? | | ?????????????????????????????????????? | | ?????????????????????????????????????? | | ?????????????????????????????????????? | | ?????????????????????????????????????? | | ?????????????????????????????????????? | | ???????????? ??????????????????????? | | ???????????? ??????????????????????? | | ???????????? """ #????????????????? | | ???????????? """ #????????????????? | | ???????????? #????????????????? | | ???????????? #????????????????? | | ???????????? #????????????????? | | ???????????? #????????????????? | | ????????????# #????????????????? | | ????????????# /! #????????????????? | | ????????????# !k ?????????????????? | | ????????????# ??????????????????? | | ????????????# ???????????????????? | | ??????????### #????????????????????? | | ??????????# # #????????????????????? | | ??????????# t@ #????????????????????? | | ??????????### #?#+####?????????????? | | ????????????# #? ????########## | | ????????????# # """ "????# | | ????????????# # """ ""???# | | ????????????# + """ ""???# | | ????????????# # # | | ????????????# # """ """ # | | ############# #? """ """??# | | # [!# #? """ ""???# | | # "=# #?? ?????# | | # T!#ggg#??""" "????# | | # [ "=# #???"" "????# | | # """ [!#o #???"" ?????# | | ?? """ # #???????????# | | ?? """ " #???????????#####+#+## | | # " #???????????????# | | #"""" """ ##??????????????# | | #" [!" ######?????????# | | " [%" #?????????# | | " *=" #?????????# | | #" " #?????????###### | | ?" " ## #??????????????? | | ?" ! """ ###? #??????????????? | | ?" "## #???? #??????????????? | +----------------------------------------------------+ Best States ------------- Heat Dissipation 34 Coolant Potential 65 Energy Generation 23 Energy Capacity 280 Matter Stores 259 Matter Capacity 300 Sight Range 20 Terrain Scan Density 10 Jamming Range 12 Armor Coverage 450 Evasion (%) 63 Recoil Reduction 1 Particle Charging 15 Item Schematics ----------------- None Robot Schematics ------------------ None Fabricated ------------ Nothing Alien Tech Used ----------------- None Achievements -------------- None Challenges ------------ None Game ------ Seed ChargeArmoredSword Manual? 0 Play Time 00:18:54 Cumulative 32.3 hours Start 2024.04.04 @ 09:06:43 End 2024.04.04 @ 09:21:20 Sessions 1 Manual Loads 0 Difficulty Rogue Special Mode None Game No. 85 Rogue 45 Adventurer 14 Explorer 26 Win Type - Total 0 Types 0/0/0/0/0/0/0/0/0 Lore% 22 Gallery% 30 Achievement% 26 Wizard Run 0 Options --------- Layout 0 ASCII 0 Keyboard 1 Movement Vi Keybinds 0 Fullscreen 1 Font 18/SmallcapsGlow Map View 76x50 Zoom Use 0% Tactical HUD 1 Map Filters NONE Filters NONE Steam 1 RUN: 51dc68ae-ab3d-4a08-b240-c0727398b177